[Event "21th Rochefort Chess Festival - Masters"]
[Site "Rochefort, France"]
[Date "2023.02.12"]
[Round "3.4"]
[White "Ghazarian, Kirk"]
[Black "Mirimanian, Hayk"]
[Result "1-0"]
[TimeControl "1h30 + [30'']"]
[WhiteElo "2471"]
[BlackElo "2281"]

1. c4 {[%clk 01:30:59]} {[%emt 00:00:01]} e5 {[%clk 01:19:53]} {[%emt
00:11:07]} 2. Nc3 {[%clk 01:31:18]} {[%emt 00:00:10]} Nf6 {[%clk 01:19:49]}
{[%emt 00:00:34]} 3. Nf3 {[%clk 01:31:31]} {[%emt 00:00:17]} Nc6 {[%clk
01:20:12]} {[%emt 00:00:08]} 4. e3 {[%clk 01:31:48]} {[%emt 00:00:12]} Bb4
{[%clk 01:13:58]} {[%emt 00:06:44]} 5. Qc2 {[%clk 01:32:10]} {[%emt 00:00:07]}
d6 {[%clk 01:13:34]} {[%emt 00:00:55]} 6. Nd5 {[%clk 01:29:52]} {[%emt
00:02:49]} Bc5 {[%clk 01:13:18]} {[%emt 00:00:46]} 7. a3 {[%clk 01:24:02]}
{[%emt 00:06:20]} a5 {[%clk 01:10:20]} {[%emt 00:03:28]} 8. b3 {[%clk
01:14:15]} {[%emt 00:10:17]} O-O {[%clk 01:07:45]} {[%emt 00:03:04]} 9. Bb2
{[%clk 01:09:26]} {[%emt 00:05:20]} Nxd5 {[%clk 01:02:48]} {[%emt 00:05:26]} 10.
cxd5 {[%clk 01:09:41]} {[%emt 00:00:14]} Ne7 {[%clk 01:02:56]} {[%emt
00:00:23]} 11. Nxe5 {[%clk 01:07:11]} {[%emt 00:03:00]} Nxd5 {[%clk 00:58:40]}
{[%emt 00:04:45]} 12. Nf3 {[%clk 01:05:24]} {[%emt 00:02:17]} Qe7 {[%clk
00:41:51]} {[%emt 00:17:19]} 13. Bd3 {[%clk 01:03:05]} {[%emt 00:02:49]} h6
{[%clk 00:41:12]} {[%emt 00:01:09]} 14. O-O {[%clk 01:02:40]} {[%emt 00:00:55]}
c6 {[%clk 00:27:34]} {[%emt 00:14:08]} 15. Rfe1 {[%clk 00:54:38]} {[%emt
00:08:32]} Nf6 {[%clk 00:24:18]} {[%emt 00:03:46]} 16. h3 {[%clk 00:52:03]}
{[%emt 00:03:05]} Re8 {[%clk 00:23:13]} {[%emt 00:01:36]} 17. e4 {[%clk
00:50:22]} {[%emt 00:02:10]} Nh5 {[%clk 00:18:00]} {[%emt 00:05:43]} 18. Bf1
{[%clk 00:46:24]} {[%emt 00:04:27]} Bb6 {[%clk 00:16:09]} {[%emt 00:02:22]} 19.
d4 {[%clk 00:35:16]} {[%emt 00:11:38]} Bd7 {[%clk 00:13:29]} {[%emt 00:03:10]}
20. Qc3 {[%clk 00:34:21]} {[%emt 00:01:25]} Qf6 {[%clk 00:07:19]} {[%emt
00:06:40]} 21. g3 {[%clk 00:28:52]} {[%emt 00:05:59]} Rac8 {[%clk 00:05:47]}
{[%emt 00:02:03]} 22. Bg2 {[%clk 00:27:50]} {[%emt 00:01:31]} c5 {[%clk
00:04:52]} {[%emt 00:01:25]} 23. Qd2 {[%clk 00:27:08]} {[%emt 00:01:11]} Qe6
{[%clk 00:04:25]} {[%emt 00:00:57]} 24. g4 {[%clk 00:25:55]} {[%emt 00:01:43]}
Nf6 {[%clk 00:04:03]} {[%emt 00:00:52]} 25. d5 {[%clk 00:26:03]} {[%emt
00:00:22]} Qe7 {[%clk 00:03:42]} {[%emt 00:00:51]} 26. e5 {[%clk 00:26:20]}
{[%emt 00:00:13]} dxe5 {[%clk 00:01:29]} {[%emt 00:02:44]} 27. Nxe5 {[%clk
00:26:48]} {[%emt 00:00:01]} Qd8 {[%clk 00:00:49]} {[%emt 00:01:11]} 28. d6
{[%clk 00:25:21]} {[%emt 00:01:57]} a4 {[%clk 00:00:33]} {[%emt 00:00:46]} 29.
Nxd7 {[%clk 00:24:27]} {[%emt 00:01:23]} Rxe1+ {[%clk 00:00:32]} {[%emt
00:00:31]} 30. Rxe1 {[%clk 00:24:50]} {[%emt 00:00:07]} Nxd7 {[%clk 00:00:57]}
{[%emt 00:00:05]} 31. b4 {[%clk 00:23:05]} {[%emt 00:02:15]} cxb4 {[%clk
00:01:08]} {[%emt 00:00:19]} 32. axb4 {[%clk 00:23:02]} {[%emt 00:00:33]} Nf6
{[%clk 00:00:31]} {[%emt 00:01:06]} 33. Re7 {[%clk 00:22:03]} {[%emt 00:01:29]}
Ne8 {[%clk 00:00:34]} {[%emt 00:00:27]} 34. d7 {[%emt 00:01:07]} 1-0

[Event "21th Rochefort Chess Festival - Masters"]
[Site "Rochefort, France"]
[Date "2023.02.12"]
[Round "3.5"]
[White "Priyanka Nutakki"]
[Black "Sochacki, Christophe"]
[Result "1/2-1/2"]
[WhiteElo "2302"]
[BlackElo "2444"]
[PlyCount "82"]
[EventDate "2023.??.??"]
[TimeControl "1"]
[WhiteClock "0:29:53"]
[BlackClock "0:38:04"]

1. d4 {[%emt 0:09:47]} Nf6 {[%emt 0:01:34]} 2. c4 {[%emt 0:00:25]} e6 {[%emt 0:
00:34]} 3. Nf3 {[%emt 0:00:09]} d5 {[%emt 0:00:12]} 4. Nc3 {[%emt 0:00:10]} c6
{[%emt 0:11:03]} 5. e3 {[%emt 0:00:12]} Nbd7 {[%emt 0:00:21]} 6. Be2 {[%emt 0:
00:13]} dxc4 {[%emt 0:03:23]} 7. a4 {[%emt 0:00:10]} c5 {[%emt 0:09:14]} 8.
Bxc4 {[%emt 0:03:29]} cxd4 {[%emt 0:05:12]} 9. Nxd4 {[%emt 0:00:47]} Bc5 {
[%emt 0:01:38]} 10. O-O {[%emt 0:01:30]} O-O {[%emt 0:00:32]} 11. Nb3 {[%emt 0:
01:25]} Bb4 {[%emt 0:00:43]} 12. Bd2 {[%emt 0:08:09]} b6 {[%emt 0:08:49]} 13.
Nb5 {[%emt 0:08:35]} Bxd2 {[%emt 0:01:46]} 14. Qxd2 {[%emt 0:02:58]} Ne5 {
[%emt 0:01:30]} 15. Qxd8 {[%emt 0:00:11]} Rxd8 {[%emt 0:00:04]} 16. Be2 {[%emt
0:00:09]} Bb7 {[%emt 0:04:15]} 17. a5 {[%emt 0:03:00]} Bd5 {[%emt 0:22:04]} 18.
N3d4 {[%emt 0:00:35]} Nc6 {[%emt 0:02:18]} 19. Nxc6 {[%emt 0:03:35]} Bxc6 {
[%emt 0:00:46]} 20. Nd4 {[%emt 0:00:03]} Bd5 {[%emt 0:01:53]} 21. a6 {[%emt 0:
00:15]} e5 {[%emt 0:01:53]} 22. Nb5 {[%emt 0:00:25]} Bc6 {[%emt 0:00:06]} 23.
Rac1 {[%emt 0:07:04]} Bxb5 {[%emt 0:00:06]} 24. Bxb5 {[%emt 0:00:04]} Rac8 {
[%emt 0:00:08]} 25. Bc6 {[%emt 0:01:12]} Kf8 {[%emt 0:01:56]} 26. h3 {[%emt 0:
01:30]} Ke7 {[%emt 0:00:58]} 27. g4 {[%emt 0:07:24]} Rd2 {[%emt 0:04:21]} 28.
b4 {[%emt 0:04:52]} h6 {[%emt 0:06:22]} 29. Rc4 {[%emt 0:07:12]} Ne8 {[%emt 0:
01:21]} 30. b5 {[%emt 0:06:46]} Rb2 {[%emt 0:01:10]} 31. Rcc1 {[%emt 0:02:29]}
Nd6 {[%emt 0:00:17]} 32. Rb1 {[%emt 0:00:20]} Rc2 {[%emt 0:01:37]} 33. Rfd1 {
[%emt 0:00:27]} Rc5 {[%emt 0:01:08]} 34. Rb3 {[%emt 0:06:00]} Rc7 {[%emt 0:00:
22]} 35. Kg2 {[%emt 0:05:28]} g6 {[%emt 0:00:05]} 36. Rbd3 {[%emt 0:07:22]}
Nxb5 {[%emt 0:00:10]} 37. Rd7+ {[%emt 0:00:02]} Rxd7 {[%emt 0:00:09]} 38. Rxd7+
{[%emt 0:00:02]} Ke6 {[%emt 0:00:12]} 39. Bxb5 {[%emt 0:00:04]} Rxb5 {[%emt 0:
00:04]} 40. Rxa7 {[%emt 0:00:03]} Ra5 {[%emt 0:00:16]} 41. Ra8 {[%emt 0:03:10]}
Kf6 {[%emt 0:02:17]} 1/2-1/2

[Event "21th Rochefort Chess Festival - Masters"]
[Site "Rochefort, France"]
[Date "2023.02.12"]
[Round "3.2"]
[White "Dalaud, Dorian"]
[Black "Harsha Bharathakoti"]
[Result "0-1"]
[TimeControl "1h30 + [30'']"]
[WhiteElo "2343"]
[BlackElo "2599"]

1. e4 {[%clk 01:25:22]} {[%emt 00:05:36]} e6 {[%clk 01:19:57]} {[%emt
00:11:04]} 2. d4 {[%clk 01:25:43]} {[%emt 00:00:09]} d5 {[%clk 01:20:20]}
{[%emt 00:00:07]} 3. e5 {[%clk 01:26:00]} {[%emt 00:00:13]} c5 {[%clk
01:19:43]} {[%emt 00:01:07]} 4. c3 {[%clk 01:26:23]} {[%emt 00:00:07]} Nc6
{[%clk 01:20:08]} {[%emt 00:00:05]} 5. Nf3 {[%clk 01:26:46]} {[%emt 00:00:06]}
Bd7 {[%clk 01:20:22]} {[%emt 00:00:17]} 6. Be2 {[%clk 01:26:50]} {[%emt
00:00:26]} Nge7 {[%clk 01:19:47]} {[%emt 00:01:06]} 7. Na3 {[%clk 01:27:10]}
{[%emt 00:00:09]} Nf5 {[%clk 01:16:22]} {[%emt 00:03:55]} 8. Nc2 {[%clk
01:27:15]} {[%emt 00:00:25]} cxd4 {[%clk 01:10:05]} {[%emt 00:06:47]} 9. cxd4
{[%clk 01:27:16]} {[%emt 00:00:29]} f6 {[%clk 01:08:21]} {[%emt 00:02:14]} 10.
O-O {[%clk 01:08:32]} {[%emt 00:19:13]} fxe5 {[%clk 01:06:53]} {[%emt
00:01:59]} 11. dxe5 {[%clk 01:03:25]} {[%emt 00:05:37]} Be7 {[%clk 00:46:03]}
{[%emt 00:21:19]} 12. Ncd4 {[%clk 00:55:53]} {[%emt 00:08:02]} O-O {[%clk
00:44:03]} {[%emt 00:02:30]} 13. Nxc6 {[%clk 00:50:13]} {[%emt 00:06:10]} bxc6
{[%clk 00:36:25]} {[%emt 00:08:08]} 14. g4 {[%clk 00:50:34]} {[%emt 00:00:09]}
Nh6 {[%clk 00:36:51]} {[%emt 00:00:04]} 15. h3 {[%clk 00:50:52]} {[%emt
00:00:11]} Rb8 {[%clk 00:29:30]} {[%emt 00:07:52]} 16. b3 {[%clk 00:43:42]}
{[%emt 00:07:40]} Nf7 {[%clk 00:15:17]} {[%emt 00:14:43]} 17. Qc2 {[%clk
00:24:02]} {[%emt 00:20:10]} c5 {[%clk 00:12:21]} {[%emt 00:03:26]} 18. Bd3
{[%clk 00:21:19]} {[%emt 00:03:12]} h6 {[%clk 00:12:18]} {[%emt 00:00:33]} 19.
Be2 {[%clk 00:19:40]} {[%emt 00:02:09]} Bb5 {[%clk 00:10:12]} {[%emt 00:02:36]}
20. Bxb5 {[%clk 00:19:36]} {[%emt 00:00:34]} Rxb5 {[%clk 00:10:39]} {[%emt
00:00:03]} 21. Qg6 {[%clk 00:19:38]} {[%emt 00:00:27]} Rb6 {[%clk 00:10:18]}
{[%emt 00:00:52]} 22. Kg2 {[%clk 00:15:36]} {[%emt 00:04:32]} Nh8 {[%clk
00:09:47]} {[%emt 00:01:02]} 23. Qc2 {[%clk 00:15:36]} {[%emt 00:00:29]} Qe8
{[%clk 00:09:46]} {[%emt 00:00:31]} 24. Ne1 {[%clk 00:15:29]} {[%emt 00:00:37]}
Ng6 {[%clk 00:08:52]} {[%emt 00:01:23]} 25. f4 {[%clk 00:15:38]} {[%emt
00:00:21]} Rb4 {[%clk 00:09:01]} {[%emt 00:00:22]} 26. Nd3 {[%clk 00:09:47]}
{[%emt 00:06:21]} Re4 {[%clk 00:09:24]} {[%emt 00:00:06]} 27. Kh1 {[%clk
00:08:07]} {[%emt 00:02:10]} Qb5 {[%clk 00:05:52]} {[%emt 00:04:02]} 28. Bd2
{[%clk 00:05:07]} {[%emt 00:03:30]} Rd4 {[%clk 00:02:05]} {[%emt 00:04:17]} 29.
Rf3 {[%clk 00:02:34]} {[%emt 00:03:03]} Nh4 {[%clk 00:01:36]} {[%emt 00:00:59]}
30. Rg3 {[%clk 00:02:03]} {[%emt 00:01:01]} c4 {[%clk 00:02:01]} {[%emt
00:00:06]} 31. Nf2 {[%clk 00:01:56]} {[%emt 00:00:37]} cxb3 {[%clk 00:02:03]}
{[%emt 00:00:27]} 32. Qc3 {[%clk 00:00:57]} {[%emt 00:01:29]} b2 {[%clk
00:00:32]} {[%emt 00:02:01]} 33. Rb1 {[%clk 00:01:02]} {[%emt 00:00:25]} Rb4
{[%clk 00:00:32]} {[%emt 00:00:30]} 34. Qc7 {[%clk 00:00:35]} {[%emt 00:00:56]}
Qe2 {[%clk 00:00:33]} {[%emt 00:00:29]} 35. Qxe7 {[%clk 00:00:32]} {[%emt
00:00:33]} Qxd2 {[%clk 00:00:32]} {[%emt 00:00:32]} 36. Qxh4 {[%clk 00:00:31]}
{[%emt 00:00:31]} Qxf2 {[%clk 00:00:39]} {[%emt 00:00:22]} 37. Qe7 {[%clk
00:00:31]} {[%emt 00:00:31]} Qxg3 {[%clk 00:00:59]} {[%emt 00:00:10]} 38. Qxb4
{[%clk 00:00:47]} {[%emt 00:00:13]} Qxh3+ {[%clk 00:01:25]} {[%emt 00:00:04]}
39. Kg1 {[%clk 00:01:09]} {[%emt 00:00:08]} Qxg4+ {[%clk 00:01:51]} {[%emt
00:00:04]} 40. Kh1 {[%clk 00:00:32]} {[%emt 00:01:07]} Qh5+ {[%clk 00:02:06]}
{[%emt 00:00:15]} 0-1



[ePGN "0.1;DGT LiveChess/2.2.5"]

[Event "21th Rochefort Chess Festival - Masters"]
[Site "Rochefort, France"]
[Date "2023.02.13"]
[Round "4.4"]
[White "Maksimenko, Andrei"]
[Black "Viani Antonio Dcunha"]
[Result "1-0"]
[TimeControl "1h30 + [30'']"]
[WhiteElo "2426"]
[BlackElo "2377"]

1. d4 {[%clk 01:28:33]} {[%emt 00:02:26]} Nf6 {[%clk 01:30:29]} {[%emt
00:00:32]} 2. Nc3 {[%clk 01:28:58]} {[%emt 00:00:05]} d5 {[%clk 01:30:21]}
{[%emt 00:00:37]} 3. Bf4 {[%clk 01:29:21]} {[%emt 00:00:08]} g6 {[%clk
01:30:18]} {[%emt 00:00:33]} 4. e3 {[%clk 01:29:44]} {[%emt 00:00:07]} Bg7
{[%clk 01:30:01]} {[%emt 00:00:47]} 5. h4 {[%clk 01:29:55]} {[%emt 00:00:18]}
h5 {[%clk 01:29:54]} {[%emt 00:00:37]} 6. Nf3 {[%clk 01:29:31]} {[%emt
00:00:54]} O-O {[%clk 01:29:33]} {[%emt 00:00:52]} 7. Be2 {[%clk 01:29:24]}
{[%emt 00:00:36]} c5 {[%clk 01:25:42]} {[%emt 00:04:22]} 8. O-O {[%clk
01:25:30]} {[%emt 00:04:24]} cxd4 {[%clk 01:23:00]} {[%emt 00:03:11]} 9. exd4
{[%clk 01:25:46]} {[%emt 00:00:14]} Nc6 {[%clk 01:23:03]} {[%emt 00:00:27]} 10.
Ne5 {[%clk 01:23:39]} {[%emt 00:02:36]} Bf5 {[%clk 01:21:28]} {[%emt 00:02:05]}
11. a3 {[%clk 01:02:32]} {[%emt 00:21:38]} Rc8 {[%clk 01:18:12]} {[%emt
00:03:46]} 12. Re1 {[%clk 00:57:05]} {[%emt 00:05:58]} Ne4 {[%clk 00:58:44]}
{[%emt 00:19:58]} 13. Nxe4 {[%clk 00:50:22]} {[%emt 00:07:13]} dxe4 {[%clk
00:53:04]} {[%emt 00:06:10]} 14. Nxc6 {[%clk 00:46:05]} {[%emt 00:04:47]} Rxc6
{[%clk 00:51:21]} {[%emt 00:02:13]} 15. c3 {[%clk 00:43:37]} {[%emt 00:02:59]}
e5 {[%clk 00:44:55]} {[%emt 00:06:56]} 16. Bxe5 {[%clk 00:39:53]} {[%emt
00:04:14]} Bxe5 {[%clk 00:45:02]} {[%emt 00:00:22]} 17. dxe5 {[%clk 00:40:20]}
{[%emt 00:00:03]} Qb6 {[%clk 00:37:22]} {[%emt 00:08:11]} 18. Qd2 {[%clk
00:32:13]} {[%emt 00:08:37]} Re8 {[%clk 00:37:04]} {[%emt 00:00:47]} 19. Rad1
{[%clk 00:30:30]} {[%emt 00:02:13]} Rce6 {[%clk 00:33:11]} {[%emt 00:04:23]} 20.
b4 {[%clk 00:28:27]} {[%emt 00:02:32]} Qc7 {[%clk 00:27:56]} {[%emt 00:05:46]}
21. Qe3 {[%clk 00:26:54]} {[%emt 00:02:03]} Rxe5 {[%clk 00:27:03]} {[%emt
00:01:23]} 22. Rd4 {[%clk 00:23:35]} {[%emt 00:03:48]} Qe7 {[%clk 00:25:57]}
{[%emt 00:01:37]} 23. g3 {[%clk 00:23:15]} {[%emt 00:00:51]} Qf6 {[%clk
00:22:23]} {[%emt 00:04:03]} 24. Red1 {[%clk 00:17:32]} {[%emt 00:06:13]} Bg4
{[%clk 00:19:38]} {[%emt 00:03:16]} 25. Bxg4 {[%clk 00:09:40]} {[%emt
00:08:22]} hxg4 {[%clk 00:20:02]} {[%emt 00:00:06]} 26. Rd5 {[%clk 00:08:08]}
{[%emt 00:02:02]} Qf3 {[%clk 00:18:04]} {[%emt 00:02:28]} 27. c4 {[%clk
00:06:06]} {[%emt 00:02:33]} b6 {[%clk 00:14:54]} {[%emt 00:03:40]} 28. R1d4
{[%clk 00:04:25]} {[%emt 00:02:10]} Kg7 {[%clk 00:13:26]} {[%emt 00:01:58]} 29.
Rxe5 {[%clk 00:04:09]} {[%emt 00:00:46]} Rxe5 {[%clk 00:13:14]} {[%emt
00:00:42]} 30. Rd7 {[%clk 00:04:19]} {[%emt 00:00:20]} a5 {[%clk 00:04:41]}
{[%emt 00:09:04]} 31. Rd6 {[%clk 00:03:20]} {[%emt 00:01:28]} Qxe3 {[%clk
00:03:28]} {[%emt 00:01:44]} 32. fxe3 {[%clk 00:03:49]} axb4 {[%clk 00:03:46]}
{[%emt 00:00:12]} 33. axb4 {[%clk 00:04:18]} Re6 {[%clk 00:02:57]} {[%emt
00:01:19]} 34. Rxe6 {[%clk 00:04:34]} {[%emt 00:00:14]} fxe6 {[%clk 00:03:23]}
{[%emt 00:00:04]} 35. c5 {[%clk 00:04:31]} {[%emt 00:00:33]} bxc5 {[%clk
00:03:20]} {[%emt 00:00:33]} 36. b5 {[%clk 00:04:57]} {[%emt 00:00:04]} c4
{[%clk 00:03:45]} {[%emt 00:00:05]} 37. Kf2 {[%emt 00:00:37]} 1-0

[Event "21th Rochefort Chess Festival - Masters"]
[Site "Rochefort, France"]
[Date "2023.02.13"]
[Round "4.5"]
[White "Belgouzia, Emir"]
[Black "Sasikiran, Krishnan"]
[Result "0-1"]
[TimeControl "1h30 + [30'']"]
[WhiteElo "2172"]
[BlackElo "2619"]

1. e4 {[%clk 01:27:47]} {[%emt 00:03:07]} e5 {[%clk 01:30:40]} {[%emt
00:00:25]} 2. Nf3 {[%clk 01:27:59]} {[%emt 00:00:15]} Nc6 {[%clk 01:31:04]}
{[%emt 00:00:09]} 3. Bb5 {[%clk 01:28:06]} {[%emt 00:00:20]} a6 {[%clk
01:31:23]} {[%emt 00:00:15]} 4. Ba4 {[%clk 01:28:29]} {[%emt 00:00:08]} Nf6
{[%clk 01:31:30]} {[%emt 00:00:22]} 5. Qe2 {[%clk 01:24:45]} {[%emt 00:04:14]}
b5 {[%clk 01:24:56]} {[%emt 00:07:04]} 6. Bb3 {[%clk 01:22:56]} {[%emt
00:02:20]} Bc5 {[%clk 01:25:19]} {[%emt 00:00:07]} 7. O-O {[%clk 01:22:55]}
{[%emt 00:00:25]} O-O {[%clk 01:24:43]} {[%emt 00:01:11]} 8. a4 {[%clk
01:21:36]} {[%emt 00:01:50]} b4 {[%clk 01:19:17]} {[%emt 00:05:56]} 9. a5
{[%clk 01:16:31]} {[%emt 00:05:34]} d6 {[%clk 01:13:04]} {[%emt 00:06:43]} 10.
d3 {[%clk 01:06:13]} {[%emt 00:10:48]} Be6 {[%clk 01:05:26]} {[%emt 00:08:08]}
11. Bxe6 {[%clk 00:58:37]} {[%emt 00:08:06]} fxe6 {[%clk 01:04:56]} {[%emt
00:01:00]} 12. Be3 {[%clk 00:58:58]} {[%emt 00:00:09]} Bxe3 {[%clk 01:01:36]}
{[%emt 00:03:50]} 13. fxe3 {[%clk 00:55:27]} {[%emt 00:04:01]} d5 {[%clk
00:59:21]} {[%emt 00:02:45]} 14. Nbd2 {[%clk 00:51:54]} {[%emt 00:04:03]} Qd6
{[%clk 00:57:50]} {[%emt 00:02:00]} 15. exd5 {[%clk 00:44:39]} {[%emt
00:07:46]} exd5 {[%clk 00:55:38]} {[%emt 00:02:42]} 16. e4 {[%clk 00:42:25]}
{[%emt 00:02:44]} Rae8 {[%clk 00:49:49]} {[%emt 00:06:19]} 17. Nb3 {[%clk
00:39:04]} {[%emt 00:03:52]} h6 {[%clk 00:45:33]} {[%emt 00:04:45]} 18. Nh4
{[%clk 00:30:07]} {[%emt 00:09:28]} dxe4 {[%clk 00:37:11]} {[%emt 00:08:52]} 19.
dxe4 {[%clk 00:29:57]} {[%emt 00:00:37]} Nd4 {[%clk 00:36:38]} {[%emt
00:01:05]} 20. Qc4+ {[%clk 00:30:07]} {[%emt 00:00:21]} Qe6 {[%clk 00:35:47]}
{[%emt 00:01:21]} 21. Qxe6+ {[%clk 00:24:15]} {[%emt 00:06:21]} Rxe6 {[%clk
00:35:26]} {[%emt 00:00:52]} 22. Nxd4 {[%clk 00:19:22]} {[%emt 00:05:23]} exd4
{[%clk 00:35:46]} {[%emt 00:00:09]} 23. e5 {[%clk 00:18:33]} {[%emt 00:01:20]}
Nd5 {[%clk 00:27:23]} {[%emt 00:08:52]} 24. Rxf8+ {[%clk 00:15:44]} {[%emt
00:03:19]} Kxf8 {[%clk 00:27:45]} {[%emt 00:00:08]} 25. Nf3 {[%clk 00:13:45]}
{[%emt 00:02:29]} c5 {[%clk 00:26:26]} {[%emt 00:01:49]} 26. Kf2 {[%clk
00:13:18]} {[%emt 00:00:57]} Ne3 {[%clk 00:17:22]} {[%emt 00:09:34]} 27. c3
{[%clk 00:12:41]} {[%emt 00:01:08]} Ng4+ {[%clk 00:14:20]} {[%emt 00:03:32]} 28.
Kg3 {[%clk 00:07:50]} {[%emt 00:05:21]} Nxe5 {[%clk 00:14:04]} {[%emt
00:00:45]} 29. cxd4 {[%clk 00:08:13]} {[%emt 00:00:07]} Nd3 {[%clk 00:12:06]}
{[%emt 00:02:27]} 30. h3 {[%clk 00:03:29]} {[%emt 00:05:14]} c4 {[%clk
00:11:17]} {[%emt 00:01:19]} 31. Ne5 {[%clk 00:02:33]} {[%emt 00:01:27]} Nxb2
{[%clk 00:09:26]} {[%emt 00:02:20]} 32. Kf4 {[%clk 00:01:24]} {[%emt 00:01:40]}
c3 {[%clk 00:07:53]} {[%emt 00:02:03]} 33. Ke4 {[%clk 00:01:11]} {[%emt
00:00:43]} c2 {[%clk 00:05:43]} {[%emt 00:02:39]} 34. d5 {[%clk 00:01:02]}
{[%emt 00:00:39]} Rxe5+ {[%clk 00:04:34]} {[%emt 00:01:39]} 35. Kxe5 {[%clk
00:01:28]} {[%emt 00:00:05]} Nd3+ {[%clk 00:04:38]} {[%emt 00:00:25]} 36. Kd6
{[%clk 00:01:07]} {[%emt 00:00:52]} c1=Q {[%clk 00:04:32]} {[%emt 00:00:36]} 37.
Rxc1 {[%clk 00:01:33]} {[%emt 00:00:04]} Nxc1 {[%clk 00:04:58]} {[%emt
00:00:04]} 38. Kc7 {[%clk 00:01:59]} {[%emt 00:00:03]} Nd3 {[%clk 00:05:11]}
{[%emt 00:00:16]} 0-1